Cogmind - Beta 15 @@@ ROGUE MODE // 2025.08.21 @ 17:48:40 Player: Mogwok Wargfriend Result: Destroyed by G-67 Veteran with Field Laser Performance ------------- Evolutions (6) 3000 Regions Visited (18) 3600 Robots Destroyed (240) 1200 Value Destroyed (11183) 11183 Prototype IDs (47) 940 Alien Tech Used (0) 0 Bonus (9573) 9573 TOTAL SCORE: 29496 Bonus ------- Triggered High Security 500 High Alert Combat Kills 2844 Follower Combat Kills 2902 Entered Garrisons 800 Used RIF Installer 2500 Aligned with FarCom 300 Friendly Fire -273 Cogmind --------- Core Integrity 0/1150 Matter 158/300 Energy 98/100 System Corruption 3% Temperature Cool (27) Movement Core (50) Location -4/Factory Parts ------- > --- POWER (1) -------- (None) > --- PROPULSION (5) --- (None) > --- UTILITY (10) ----- Advanced Targeting Computer Advanced Targeting Computer Experimental Core Analyzer Relay Coupler [NC] (33) Relay Coupler [NC] (35) > --- WEAPON (3) ------- (None) > --- INVENTORY (5) ---- Bomb Drone Bay (16/16) Improved Datajack Vibroblade Peak State ------------ > --- POWER ------------ Improved Deuterium Engine > --- PROPULSION ------- Armored Medium Treads Armored Medium Treads Armored Heavy Treads Armored Wheel > --- UTILITY ---------- Advanced Heat Sink High-capacity Storage Unit Improved Signal Interpreter Advanced Targeting Computer Advanced Melee Analysis Suite Experimental Core Analyzer Improved Powered Armor Improved Hacking Suite Relay Coupler [NC] Relay Coupler [Grunt] > --- WEAPON ----------- KE Penetrator Heavy Linear Accelerator > --- INVENTORY -------- Reinforced Fission Core Improved Heavy Treads Experimental Heat Sink Matter Compressor Advanced Targeting Computer Relay Coupler [NC] Bomb Drone Bay Wave Gun KE Penetrator Helical Railgun Heavy Mass Driver Improved Datajack Improved Remote Datajack Vibroblade [Rating: 108] Favorites ----------- Power Improved Deuterium Engine Engine Improved Deuterium Engine Power Core Light Nuclear Core Propulsion Armored Wheel Treads Light Treads Leg Flexi-carbon Leg Wheel Armored Wheel Flight Unit Cooled VTOL Module Utility High-capacity Storage Unit Device Improved Heat Sink Storage High-capacity Storage Unit Processor Advanced Targeting Computer Hackware Relay Coupler [Grunt] Protection Hardened Medium Armor Plating Weapon Improved Assault Rifle Energy Gun Arc Projector Energy Cannon Advanced Beam Cannon Ballistic Gun Improved Assault Rifle Ballistic Cannon Heavy Linear Accelerator Launcher Proton Missile Launcher Special Weapon Mining Laser Slashing Weapon Segregator Special Melee Weapon Datajack Build | -11 -10 -10 -9 -9 -9 -8 -8 -7 -7 -7 -7 -7 -7 -6 -6 -5 -5 -4 ------- Run | Yrd Mat Min Mat Min Exi Min Mat Fac Was Fac Gar Fac Gar Fac Gar Fac Gar Fac Slots Evolved 12 | . . . 2 . . . 2 2 . . . . . 2 . 2 . 2 Power . | . . . . . . . . . . . . . . . . . . . Propulsion 3 | . . . . . . . 1 1 . . . . . . . 1 . . Utility 8 | . . . 1 . . . 1 1 . . . . . 2 . 1 . 2 Weapon 1 | . . . 1 . . . . . . . . . . . . . . . Parts Attached 189 | 7 9 4 23 2 1 8 28 8 2 . 3 12 17 6 35 2 12 10 Power 19 | 1 1 2 2 . . 1 3 1 . . . . 1 . 4 . 2 1 Engine 13 | 1 1 2 2 . . . 1 1 . . . . 1 . 3 . 1 . Core 6 | . . . . . . 1 2 . . . . . . . 1 . 1 1 Reactor . | . . . . . . . . . . . . . . . . . . . Propulsion 49 | 2 2 1 7 . . 2 12 2 . . . 3 4 1 9 1 1 2 Treads 27 | 1 1 . 4 . . 1 6 1 . . . 1 2 . 8 . 1 1 Leg 3 | . . . . . . . . . . . . . 1 1 . . . 1 Wheel 17 | 1 1 1 2 . . 1 6 . . . . 2 1 . 1 1 . . Hover . | . . . . . . . . . . . . . . . . . . . Flight 2 | . . . 1 . . . . 1 . . . . . . . . . . Utility 65 | 2 4 1 3 . 1 1 3 3 . . 2 9 6 4 13 1 7 5 Device 21 | 1 . . 1 . . 1 2 . . . 2 7 . 2 3 . 2 . Storage 6 | 1 3 . . . 1 . . . . . . . . . 1 . . . Processor 7 | . . . 1 . . . . 1 . . . . . 1 . 1 1 2 Hackware 15 | . . . . . . . . 1 . . . 1 4 1 4 . 2 2 Protection 16 | . 1 1 1 . . . 1 1 . . . 1 2 . 5 . 2 1 Artifact . | . . . . . . . . . . . . . . . . . . . Weapon 56 | 2 2 . 11 2 . 4 10 2 2 . 1 . 6 1 9 . 2 2 Energy Gun 12 | 1 . . 1 . . 1 4 . . . 1 . 2 1 1 . . . Energy Cannon 1 | . . . 1 . . . . . . . . . . . . . . . Ballistic Gun 27 | 1 2 . 6 1 . 3 4 1 1 . . . 1 . 5 . 2 . Ballistic Cannon 4 | . . . . . . . . 1 . . . . 1 . 1 . . 1 Launcher 5 | . . . 2 . . . 1 . . . . . 2 . . . . . Special Weapon 2 | . . . . 1 . . . . . . . . . . . . . 1 Impact Weapon . | . . . . . . . . . . . . . . . . . . . Slashing Weapon 2 | . . . . . . . . . 1 . . . . . 1 . . . Piercing Weapon . | . . . . . . . . . . . . . . . . . . . Special Melee Weapon 3 | . . . 1 . . . 1 . . . . . . . 1 . . . Unidentified Prototypes 11 | . . . 3 . . . 4 2 1 . . . . . . . 1 . Parts Lost 57 | . 2 2 . 1 . 5 . . . . 2 . 8 . 17 . . 20 Power 5 | . 1 . . . . . . . . . . . 1 . 2 . . 1 Propulsion 21 | . . 1 . . . 2 . . . . . . 4 . 6 . . 8 Utility 12 | . . . . . . . . . . . 1 . 1 . 3 . . 7 Weapon 19 | . 1 1 . 1 . 3 . . . . 1 . 2 . 6 . . 4 Highest Loss Streak 10 | . 1 2 . 1 . 2 . . . . 2 . 5 . 7 . . 10 To Critical Strikes . | . . . . . . . . . . . . . . . . . . . Average Backups 18 | 4 15 18 18 18 18 18 18 18 19 19 18 18 18 19 17 17 17 16 Power 1 | . 1 . 1 1 1 1 1 1 1 1 1 1 . 1 1 1 1 . Propulsion 3 | 2 5 5 5 5 5 3 4 4 4 4 4 4 3 3 1 1 1 1 Utility 7 | . 3 5 5 7 7 7 7 7 7 7 7 8 7 8 8 9 7 6 Weapon 5 | 1 5 6 5 4 4 4 5 5 5 6 5 4 4 5 5 4 4 4 Tool/Special . | . . . . . . . . . . . . . . . . . . . Unused Backups 67 | . 4 4 13 . . . 13 2 2 . 5 1 6 . 8 . 3 6 Power 4 | . . . 2 . . . . 1 . . . . . . 1 . . . Propulsion 13 | . 2 . 3 . . . 6 . . . . 1 1 . . . . . Utility 26 | . . 3 4 . . . 2 1 1 . 2 . 3 . 4 . 3 3 Weapon 24 | . 2 1 4 . . . 5 . 1 . 3 . 2 . 3 . . 3 Tool/Special . | . . . . . . . . . . . . . . . . . . . Average Slot Usage (%) 95 | . 97 98 99 99 100 97 99 99 100 100 99 99 94 91 91 83 87 80 Engine 6 | . 12 12 11 11 11 2 5 7 7 7 7 7 6 6 5 5 4 4 Treads 13 | . 13 14 10 11 11 10 10 15 15 15 15 15 14 13 14 11 10 9 Wheel 11 | . 14 14 11 11 11 11 16 15 15 15 15 15 11 6 6 7 11 8 Device 5 | . 11 . 7 . . 8 9 6 7 7 10 8 . . 4 5 5 4 Storage 7 | . 14 14 11 11 11 11 9 7 7 7 7 7 7 6 6 5 5 4 Processor 9 | . . . 3 11 11 11 9 7 7 7 7 7 7 12 13 15 17 20 Hackware 7 | . . . . . . . . 6 7 7 3 6 14 18 14 11 11 10 Protection 6 | . 2 14 11 11 11 2 8 7 7 7 7 6 7 6 5 5 4 4 Energy Gun 5 | . 7 . 4 9 11 10 8 7 7 7 6 7 3 6 3 5 . . Ballistic Gun 13 | . 20 28 23 21 22 21 17 14 15 15 15 15 13 . 6 . 4 4 Ballistic Cannon 1 | . . . . . . . . . . . . . 2 6 3 5 5 4 Peak Build Rating 108 | 7 9 14 24 22 23 26 36 44 48 45 46 47 48 54 81 84 104 108 Average Rating 48 | 5 7 10 20 21 22 24 32 42 43 45 45 45 45 51 59 82 98 99 On Entrance 38 | . 7 8 14 22 22 23 26 32 43 45 45 45 46 42 54 79 84 99 Naked Turns . | . . . . . . . . . . . . . . . . . . . Heaviest Build 95 | 15 90 61 67 66 66 66 68 64 64 64 72 72 76 78 92 84 95 95 Greatest Support 132 | 10 10 10 10 10 10 10 20 20 20 20 20 24 24 12 12 24 24 132 Greatest Overweight (x) 8 | 1 8 6 6 6 6 6 6 3 3 3 3 6 6 6 7 6 3 7 Average Overweight (x) 4 | . 3 4 6 6 6 5 4 2 3 3 3 2 3 6 5 4 3 1 Largest Inventory Capacity 25 | 8 25 20 20 20 20 20 20 20 20 20 20 20 20 20 20 20 20 20 Average Capacity 19 | 7 17 20 20 20 20 20 20 20 20 20 20 20 20 20 20 20 20 19 Most Carried 20 | 7 20 20 20 20 20 20 20 20 20 20 20 20 20 20 20 20 20 20 Average Carried 19 | 4 15 19 19 19 19 19 19 19 19 20 19 19 19 19 19 19 19 18 Final Capacity 20 | 8 20 20 20 20 20 20 20 20 20 20 20 20 20 20 20 20 20 5 Final Carried 20 | 7 20 20 20 19 20 20 20 20 20 20 20 20 20 20 20 19 20 4 Class Distribution -------------------- 23% | Skirmisher 20% | Scavenger-Tank 14% | Scavenger-Skirmisher 13% | Bothacker-Skirmisher 8% | Mutant 6% | Gunner 3% | Tank 3% | Scavenger-Mutant Dominant Class ---------------- Mutant | -10/Materials Mutant | -10/Mines Scavenger-Tank | -9/Materials Gunner | -9/Mines Gunner | -9/Exiles Skirmisher | -8/Mines Scavenger-Skirmisher | -8/Materials Skirmisher | -7/Factory Skirmisher | -7/Waste Skirmisher | -7/Factory Skirmisher | -7/Garrison Bothacker-Skirmisher | -7/Factory Skirmisher | -7/Garrison Bothacker-Skirmisher | -6/Factory Scavenger-Skirmisher | -6/Garrison Scavenger-Tank | -5/Factory Scavenger-Tank | -5/Garrison Scavenger-Tank | -4/Factory Resources | -11 -10 -10 -9 -9 -9 -8 -8 -7 -7 -7 -7 -7 -7 -6 -6 -5 -5 -4 ----------- Run | Yrd Mat Min Mat Min Exi Min Mat Fac Was Fac Gar Fac Gar Fac Gar Fac Gar Fac Matter Collected 8788 | 297 322 272 1029 105 . 252 1079 254 121 . 280 303 1016 97 1777 . 1199 385 Remotely . | . . . . . . . . . . . . . . . . . . . Salvage Created 9679 | 172 465 322 2178 261 . 421 2284 261 . . 40 90 1077 148 912 . 776 272 Parts 485 | 15 35 9 127 13 . 15 125 10 . . 1 . 44 9 50 . 25 7 Haulers Intercepted 12 | . 2 . 5 . . . 5 . . . . . . . . . . . Recyclers Shooed 7 | . . . 1 2 . 1 1 1 . . . 1 . . . . . . Parts Field Recycled . | . . . . . . . . . . . . . . . . . . . Retrieved Matter . | . . . . . . . . . . . . . . . . . . . Parts Self-Destructed . | . . . . . . . . . . . . . . . . . . . Prevented . | . . . . . . . . . . . . . . . . . . . Kills | -11 -10 -10 -9 -9 -9 -8 -8 -7 -7 -7 -7 -7 -7 -6 -6 -5 -5 -4 ------- Run | Yrd Mat Min Mat Min Exi Min Mat Fac Was Fac Gar Fac Gar Fac Gar Fac Gar Fac Combat Hostiles Destroyed 149 | . 13 5 27 6 . 7 24 2 . . 1 2 23 3 22 . 10 4 Guns 111 | . 13 5 18 6 . 7 23 2 . . 1 2 19 . 12 . 2 1 Cannons 27 | . . . 5 . . . . . . . . . 2 3 6 . 8 3 AOE 11 | . . . 4 . . . 1 . . . . . 2 . 4 . . . Classes Destroyed 18 | 3 4 . 6 . . 1 1 1 . . . . 1 . . . 1 . Worker 30 | 2 1 . 13 . . . 10 3 . . . . . . . . . 1 Builder 9 | . . . 2 . . . 6 . . . . . . . . . . 1 Tunneler 5 | 3 . . . . . . 2 . . . . . . . . . . . Hauler 12 | . 2 . 5 . . . 5 . . . . . . . . . . . Recycler 16 | 1 1 1 5 2 . 1 4 1 . . . . . . . . . . Mechanic 3 | . . . . . . . 1 1 . . . . . . . . . 1 Operator 3 | . . . 1 . . . . . . . . . 1 . 1 . . . Watcher 11 | . 3 . 3 . . . 4 1 . . . . . . . . . . Swarmer 40 | . 12 . 1 6 . . 3 . . . . . 3 . 11 . 4 . Cutter 1 | . . . . . . . . . . . . . . . . . 1 . Grunt 54 | . 1 5 14 . . 5 14 . . . 1 2 5 1 3 . 1 2 Brawler 4 | . . . 1 . . . 1 . . . . . . . 2 . . . Duelist 6 | . . . 2 . . 1 1 . . . . . 1 . . . . 1 Protector 1 | . . . 1 . . . . . . . . . . . . . . . Sentry 28 | . . . 8 . . . 5 . . . . . 8 1 5 . 1 . Specialist 2 | . . . . . . . . . . . . . 1 . . . . 1 Hunter 3 | . . . . . . 1 . . . . . . . . 1 . 1 . Programmer 9 | . . . . . . . . 2 . . . . 4 1 . . 2 . Surgeon 2 | . . . . . . . . . . . . 1 1 . . . . . Savage 1 | . . . . . . . . . . . . . 1 . . . . . Best Kill Streak 18 | 4 3 1 18 3 . 4 6 3 . . 1 1 4 2 10 . 3 5 Combat Bots Only 10 | . 3 1 6 3 . 4 3 1 . . 1 1 4 2 10 . 3 3 Max Kills in Single Turn 3 | 1 2 1 3 1 . 1 2 1 . . 1 1 3 1 2 . 1 1 Gunslinging 1 | . 1 . . . . . . . . . . . 1 . . . . . Exploded 3 | . . . 3 . . . 1 . . . . . 2 . 2 . . . Melee . | . . . . . . . . . . . . . . . . . . . Uniques/NPCs Destroyed . | . . . . . . . . . . . . . . . . . . . Combat | -11 -10 -10 -9 -9 -9 -8 -8 -7 -7 -7 -7 -7 -7 -6 -6 -5 -5 -4 -------- Run | Yrd Mat Min Mat Min Exi Min Mat Fac Was Fac Gar Fac Gar Fac Gar Fac Gar Fac Hostile Shots Fired 1700 | . 79 34 73 25 . 56 75 24 . . 19 10 258 11 339 . 60 637 Missed 580 | . 17 11 19 10 . 7 20 3 . . 7 1 88 4 117 . 21 255 Hits 1120 | . 62 23 54 15 . 49 55 21 . . 12 9 170 7 222 . 39 382 Melee 2 | . . . . . . 1 . . . . . . . . . . 1 . Projectile 1118 | . 62 23 54 15 . 48 55 21 . . 12 9 170 7 222 . 38 382 AOE 6 | . . . . . . . . . . . . 1 . . . . 2 3 Critical Strikes 22 | . . . 4 . . 1 2 . . . . . . 1 . . . 14 Part Disruptions 1 | . . . . . . . . . . . . . . . . . . 1 Damage Taken 15891 | . 583 331 725 512 . 837 773 315 . . 490 237 1683 69 2824 . 715 5797 Core 2362 | . 137 19 102 90 . 86 121 16 . . 66 31 181 . 312 . 44 1157 Absorbed by Shields . | . . . . . . . . . . . . . . . . . . . Reduced by Siege Mode 172 | . . . . . . . . . . . . . . . . . . 172 Redirected to Shielding 6 | . 2 4 . . . . . . . . . . . . . . . . Regen/Repaired (Parts) 640 | . . . . . . . . . 45 . 14 84 92 . . . . 405 Core Remaining (%) 65 | 100 . 37 . . . 30 78 . . . . . 58 . 63 . 95 . Volleys Fired 734 | 9 55 25 94 31 . 24 119 24 . . 20 13 76 7 139 . 82 16 Largest 3 | 2 2 2 3 3 . 3 3 3 . . 3 3 3 2 3 . 2 2 Hottest 149 | 70 70 40 111 146 . 149 109 107 . . 117 111 136 130 145 . 133 103 Shots Fired 1724 | 18 109 50 272 61 . 66 314 73 . . 65 43 180 14 286 . 142 31 Gun 1490 | 18 109 50 228 45 . 66 297 73 . . 65 43 160 7 249 . 64 16 Cannon 179 | . . . 40 . . . . . . . . . 13 7 26 . 78 15 Launcher 22 | . . . 4 . . . . . . . . . 7 . 11 . . . Special 33 | . . . . 16 . . 17 . . . . . . . . . . . Kinetic 1269 | 9 68 50 213 32 . 47 204 49 . . 45 30 152 7 195 . 137 31 Thermal 385 | 9 41 . 55 29 . 19 87 24 . . 8 . 21 7 80 . 5 . Explosive 10 | . . . 4 . . . . . . . . . 5 . 1 . . . Electromagnetic 60 | . . . . . . . 23 . . . 12 13 2 . 10 . . . Robot Hit Streak 32 | 5 4 15 12 14 . 10 17 8 . . 7 8 32 12 31 . 18 6 Robot Miss Streak 7 | 1 5 6 6 3 . 3 5 3 . . 1 4 4 . 7 . 3 5 Penetration Max 1 | . . . . . . 1 1 . . . . . 1 . . . 1 1 Secondary Targets 15 | . 4 . 1 . . 1 3 . . . . . 4 . 2 . . . Max Gunslinging Chain 1 | . 1 . 1 . . 1 1 . . . . . 1 . 1 . . . Shots Hit Robots 880 | 11 52 31 142 20 . 42 177 47 . . 12 24 112 10 140 . 46 14 Core Hits 399 | 7 24 12 80 9 . 18 84 11 . . 1 9 43 4 61 . 24 12 Critical Kills 4 | . . . . . . . 2 . . . . . 2 . . . . . Critical Parts Destroyed 5 | . . . 1 . . . . . . . 1 1 2 . . . . . Critical Strikes 32 | 1 1 . 2 . . 2 7 2 . . 1 1 5 2 5 . 2 1 Burn 14 | 1 1 . 1 . . 2 5 2 . . . . . . 2 . . . Destroy 9 | . . . 1 . . . 2 . . . 1 1 4 . . . . . Blast 9 | . . . . . . . . . . . . . 1 2 3 . 2 1 Melee Attacks 45 | . . . 2 . . . . . . . . . 20 . 18 . 5 . Thermal 2 | . . . . . . . . . . . . . . . 2 . . . Impact . | . . . . . . . . . . . . . . . . . . . Slashing . | . . . . . . . . . . . . . . . . . . . Piercing . | . . . . . . . . . . . . . . . . . . . Sneak Attacks 25 | . . . 2 . . . . . . . . . 14 . 9 . . . Combat Hostiles 1 | . . . . . . . . . . . . . . . 1 . . . Follow-up Attacks . | . . . . . . . . . . . . . . . . . . . Damage Inflicted 18282 | 140 704 399 2434 318 . 659 2901 889 . . 232 485 2774 374 2936 . 2257 780 Guns 13138 | 140 704 399 1635 294 . 659 2831 889 . . 232 485 2035 114 1803 . 561 357 Cannons 3885 | . . . 437 . . . . . . . . . 359 260 733 . 1696 400 Explosions 1212 | . . . 362 . . . 70 . . . . . 380 . 400 . . . Melee . | . . . . . . . . . . . . . . . . . . . Ramming 23 | . . . . . . . . . . . . . . . . . . 23 Kinetic 13421 | 63 433 399 1475 217 . 454 2006 504 . . 155 429 2117 260 1911 . 2241 757 Thermal 3522 | 77 271 . 597 101 . 205 758 385 . . 64 . 277 114 657 . 16 . Explosive 845 | . . . 362 . . . . . . . . . 380 . 103 . . . Electromagnetic 471 | . . . . . . . 137 . . . 13 56 . . 265 . . . Impact . | . . . . . . . . . . . . . . . . . . . Slashing . | . . . . . . . . . . . . . . . . . . . Piercing . | . . . . . . . . . . . . . . . . . . . Highest Corruption 16 | . . . . 2 2 2 . 7 7 7 12 16 3 . 1 . . 3 Average Corruption 4 | . . . . 2 2 2 . 4 7 7 10 10 2 . 1 . . 2 Corruption Purged 16 | . . . . . . . . . . . . 16 . . . . . . Corruption Blocked . | . . . . . . . . . . . . . . . . . . . Effects 210 | . . . . 1 7 6 . 18 8 2 57 56 24 . 30 . . 1 Message Errors 44 | . . . . . 2 2 . 1 2 2 12 12 5 . 6 . . . Matter Fused 53 | . . . . . . 1 . 6 2 . 21 10 5 . 8 . . . Heat Flow Errors 24 | . . . . 1 . 1 . 4 1 . 4 4 2 . 6 . . 1 Energy Discharges 37 | . . . . . 3 2 . 4 1 . 7 12 6 . 2 . . . Data Loss (minor) 24 | . . . . . 1 . . 2 2 . 7 6 2 . 4 . . . Data Loss (major) 10 | . . . . . 1 . . . . . 1 5 1 . 2 . . . Misfires 15 | . . . . . . . . 1 . . 5 5 2 . 2 . . . Alerts 3 | . . . . . . . . . . . . 2 1 . . . . . Overload Shots . | . . . . . . . . . . . . . . . . . . . Overflow Damage 233 | . . . 20 . . . . . . . . . 44 62 15 . 88 4 Projectiles 212 | . . . . . . . . . . . . . 43 62 15 . 88 4 Explosions 21 | . . . 20 . . . . . . . . . 1 . . . . . Melee . | . . . . . . . . . . . . . . . . . . . Knockbacks 8 | . . . . . . . . . . . . . . . 3 . 4 1 Impact . | . . . . . . . . . . . . . . . . . . . Kinetic 8 | . . . . . . . . . . . . . . . 3 . 4 1 Secondary . | . . . . . . . . . . . . . . . . . . . Self-Inflicted Damage 175 | . . . . . . . . . . . . . 78 . 97 . . . Shots 5 | . . . . . . . . . . . . . 2 . 3 . . . Rammed 3 | . . . . . . . . . . . . . . . . . . 3 Targets Rammed 3 | . . . . . . . . . . . . . . . . . . 3 Kicked . | . . . . . . . . . . . . . . . . . . . Crushed . | . . . . . . . . . . . . . . . . . . . Highest Temperature 353 | 45 114 11 122 290 . 353 99 255 76 . 164 175 261 62 245 . . 83 Average Temperature 66 | 17 28 4 32 132 . 150 27 103 56 . 66 67 51 26 84 . . 22 Received Heat Transfer 3519 | . 48 186 354 . . 360 333 . . . 33 54 498 12 339 . 54 1248 Effects 2 | . . . . 2 . . . . . . . . . . . . . . Energy Bleed 1 | . . . . 1 . . . . . . . . . . . . . . Interference 1 | . . . . 1 . . . . . . . . . . . . . . Siege Activations 1 | . . . . . . . . . . . . . . . . . . 1 Total Turns 23 | . . . . . . . . . . . . . . . . . . 23 Longest Duration 23 | . . . . . . . . . . . . . . . . . . 23 Martial Activations . | . . . . . . . . . . . . . . . . . . . Shielding Activations . | . . . . . . . . . . . . . . . . . . . Robots Disrupted 1 | . . . . . . . . . . . . 1 . . . . . . Combat Hostiles 1 | . . . . . . . . . . . . 1 . . . . . . Robots Corrupted . | . . . . . . . . . . . . . . . . . . . Combat Hostiles . | . . . . . . . . . . . . . . . . . . . Parts Fried . | . . . . . . . . . . . . . . . . . . . Impact Corruptions . | . . . . . . . . . . . . . . . . . . . Robots Melted . | . . . . . . . . . . . . . . . . . . . Combat Hostiles . | . . . . . . . . . . . . . . . . . . . Parts Melted 15 | . 3 . 3 1 . . 4 1 . . . . 3 . . . . . Heat Transferred 8630 | 296 851 . 1258 235 . 666 1913 777 . . 111 . 575 250 1661 . 37 . Parts Sabotaged . | . . . . . . . . . . . . . . . . . . . Parts Stolen . | . . . . . . . . . . . . . . . . . . . Parts Stripped . | . . . . . . . . . . . . . . . . . . . Power Chain Reactions 2 | . . . . . . . 1 . . . . . . . 1 . . . Alert | -11 -10 -10 -9 -9 -9 -8 -8 -7 -7 -7 -7 -7 -7 -6 -6 -5 -5 -4 ------- Run | Yrd Mat Min Mat Min Exi Min Mat Fac Was Fac Gar Fac Gar Fac Gar Fac Gar Fac Maximum Alert Level 5 | . . . 2 1 . . 2 1 . . 5 5 5 5 5 5 5 5 Low Security (%) 26 | 100 100 100 14 79 . 100 56 92 100 100 15 . . . . . . . Level 1 7 | . . . 30 20 . . 27 7 . . . . . . . . . . Level 2 8 | . . . 54 . . . 15 . . . 3 30 . . . . . . Level 3 5 | . . . . . . . . . . . 10 32 . . 12 . . . Level 4 16 | . . . . . . . . . . . 62 19 20 85 23 . . 69 Level 5 35 | . . . . . . . . . . . 7 17 79 14 63 80 100 30 High Security . | . . . . . . . . . . . . . . . . 19 . . Max Security . | . . . . . . . . . . . . . . . . . . . Peak Influence 4329 | 10 128 40 530 240 . 175 549 245 . . 1649 1867 3107 1647 4329 2362 3187 1673 Initial 2272 | . . 13 . 175 . . 18 245 . . . 865 1304 1631 998 2272 1653 1673 Average 1225 | 1 74 6 374 120 . 107 192 58 . . 1111 1024 2055 1518 2262 2269 2265 1575 Influence Increases 14574 | 30 423 115 1012 161 . 265 1063 132 . . 1689 1658 2103 185 3541 170 1674 353 Destroy 0b10 Robot/C 4580 | . 260 100 520 120 . 140 480 40 . . 540 440 680 100 600 80 300 180 Destroy 0b10 Robot/NC 570 | 30 35 5 150 10 . 5 160 30 . . 5 75 5 . 10 . 30 20 Destroy Leader 748 | . 50 10 156 10 . 30 138 22 . . 40 122 40 20 40 10 30 30 Allied During Kill 1499 | . . . . . . . . . . . 585 540 114 4 93 68 60 35 Trap Triggered on 0b10 20 | . . . 20 . . . . . . . . . . . . . . . Successful Hack 246 | . 16 . 14 . . . 55 24 . . 28 12 35 12 10 . 17 23 Disable Machine 615 | . . . 75 . . . 45 15 . . 15 300 60 15 60 . . 30 Anti-Garrison Action 4850 | . . . . . . . . . . . 350 . 1050 . 2450 . 1000 . Destroy Structure 771 | . 2 . 17 6 . . 20 1 . . 126 154 119 4 143 12 147 20 Partial Spotted 30 | . . . . . . . 15 . . . . 15 . . . . . . Lose Combat Pursuer 645 | . 60 . 60 15 . 90 150 . . . . . . 30 135 . 90 15 Influence Decreases 13154 | 30 387 151 560 565 48 218 569 673 . . 40 1443 860 1866 638 2137 849 2120 Entered New Map 8201 | . . 23 . 277 48 . 29 296 . . . 784 560 1476 428 2057 709 1514 Time Decay 3763 | 30 367 128 560 278 . 188 530 377 . . . 589 . 310 . 80 . 326 Lost Part 530 | . 20 . . 10 . 30 . . . . 20 . 80 . 170 . . 200 Lost Ally 660 | . . . . . . . 10 . . . 20 70 220 80 40 . 140 80 Squads Dispatched 31 | . . 1 3 . . . 3 4 . . . 11 . 4 . . . 5 Investigation 6 | . . 1 . . . . 2 . . . . 2 . . . . . 1 Extermination 7 | . . . . . . . . 3 . . . 3 . . . . . 1 Reinforcement 6 | . . . 1 . . . 1 1 . . . 3 . . . . . . Assault 8 | . . . 2 . . . . . . . . 2 . 1 . . . 3 Garrison 4 | . . . . . . . . . . . . 1 . 3 . . . . Intercept . | . . . . . . . . . . . . . . . . . . . Searches Triggered . | . . . . . . . . . . . . . . . . . . . Construction Impeded 2 | . . . . . . . 1 . . . . 1 . . . . . . Haulers Reinforced . | . . . . . . . . . . . . . . . . . . . Active Scanning Responses . | . . . . . . . . . . . . . . . . . . . Cargo Convoy Interrupts 1 | . . . . . . . . . . . . . . . . . . 1 Stealth | -11 -10 -10 -9 -9 -9 -8 -8 -7 -7 -7 -7 -7 -7 -6 -6 -5 -5 -4 --------- Run | Yrd Mat Min Mat Min Exi Min Mat Fac Was Fac Gar Fac Gar Fac Gar Fac Gar Fac Distress Signals 15 | . 1 . 4 . . . 7 . . . . 3 . . . . . . Communications Jammed 31 | . . . . . . . . . . . . . . . . . . 31 Distress Signals 31 | . . . . . . . . . . . . . . . . . . 31 Times Spotted 318 | . 22 8 38 8 . 13 47 4 . . 18 21 35 8 37 . 20 39 Peak Tracking Total 21 | . 3 2 9 4 . 7 6 1 . . 3 6 4 5 8 . 5 21 Tactical Retreats 24 | . 3 . 2 1 . 2 6 . . . . . . 1 6 . 2 1 Traps | -11 -10 -10 -9 -9 -9 -8 -8 -7 -7 -7 -7 -7 -7 -6 -6 -5 -5 -4 ------- Run | Yrd Mat Min Mat Min Exi Min Mat Fac Was Fac Gar Fac Gar Fac Gar Fac Gar Fac Traps Triggered 26 | . 3 . . . . . 1 2 . . 3 4 2 . 7 . 4 . Indirectly . | . . . . . . . . . . . . . . . . . . . Trap Hack Attempts 165 | . . . 102 . . . . . . . 6 . 6 . 51 . . . Triggered 1 | . . . . . . . . . . . . . . . 1 . . . Disarmed 6 | . . . 6 . . . . . . . . . . . . . . . Reprogrammed 18 | . . . 4 . . . . . . . 1 . 2 . 11 . . . Reused 2 | . . . 2 . . . . . . . . . . . . . . . Traps Extracted . | . . . . . . . . . . . . . . . . . . . Installed . | . . . . . . . . . . . . . . . . . . . Triggered 2 | . . . 2 . . . . . . . . . . . . . . . Machines | -11 -10 -10 -9 -9 -9 -8 -8 -7 -7 -7 -7 -7 -7 -6 -6 -5 -5 -4 ---------- Run | Yrd Mat Min Mat Min Exi Min Mat Fac Was Fac Gar Fac Gar Fac Gar Fac Gar Fac Machines Disabled 66 | . . . 5 . . . 3 1 . . 6 20 14 1 9 . 5 2 Max in Single Turn 2 | . . . 1 . . . 1 1 . . 1 . 2 1 1 . 1 1 Garrison Access 1 | . . . . . . . 1 . . . . . . . . . . . Garrison Relay 18 | . . . . . . . . . . . 5 . 5 . 5 . 3 . Phase Generator 2 | . . . . . . . . . . . . . 1 . . . 1 . Machines Repaired . | . . . . . . . . . . . . . . . . . . . Machines Dismantled . | . . . . . . . . . . . . . . . . . . . Machines Sabotaged . | . . . . . . . . . . . . . . . . . . . Overloaded Fab Kills . | . . . . . . . . . . . . . . . . . . . Hacking | -11 -10 -10 -9 -9 -9 -8 -8 -7 -7 -7 -7 -7 -7 -6 -6 -5 -5 -4 --------- Run | Yrd Mat Min Mat Min Exi Min Mat Fac Was Fac Gar Fac Gar Fac Gar Fac Gar Fac Machines Accessed 59 | . 6 2 7 . 1 . 13 4 . 1 3 8 3 3 1 1 3 3 Terminals 36 | . 4 . 5 . . . 9 3 . . 3 4 3 1 1 . 3 . Fabricators 5 | . . . . . . . . 1 . . . 3 . . . . . 1 Repair Stations 3 | . . . 1 . . . . . . . . . . . . . . 2 Recycling Units 6 | . 2 . 1 . . . 2 . . . . . . 1 . . . . Scanalyzers 1 | . . . . . . . 1 . . . . . . . . . . . Garrison Access 5 | . . . . . . . 1 . . 1 . 1 . 1 . 1 . . Total Hacks 120 | . 11 2 14 . 1 . 36 7 . 1 5 15 4 7 1 3 3 10 Successful 70 | . 9 2 6 . 1 . 22 3 . 1 2 6 3 3 1 1 3 7 Failed 50 | . 2 . 8 . . . 14 4 . . 3 9 1 4 . 2 . 3 Catastrophic 15 | . 1 . 2 . . . 2 2 . . 2 5 . 1 . . . . Database Lockouts . | . . . . . . . . . . . . . . . . . . . Manual 75 | . 11 . 12 . 1 . 22 6 . . . 12 . 6 . 2 . 3 Terminals 68 | . 7 . 9 . . . 24 5 . . 5 7 4 3 1 . 3 . Fabricators 11 | . . . . . . . . 2 . . . 7 . . . . . 2 Repair Stations 10 | . . . 2 . . . . . . . . . . . . . . 8 Recycling Units 18 | . 4 . 3 . . . 8 . . . . . . 3 . . . . Scanalyzers 3 | . . . . . . . 3 . . . . . . . . . . . Garrison Access 7 | . . . . . . . 1 . . 1 . 1 . 1 . 3 . . Terminal Hacks 20 | . 2 2 1 . 1 . 5 . . . 2 . 3 . 1 . 3 . Robot Analysis 4 | . 2 . 1 . . . 1 . . . . . . . . . . . Open Door 4 | . . 2 . . . . . . . . . . 1 . . . 1 . Emergency Access Points 3 | . . . . . . . . . . . . . 1 . 1 . 1 . Locate Traps 4 | . . . . . . . 4 . . . . . . . . . . . Garrison Registry 2 | . . . . . . . . . . . 1 . 1 . . . . . Patrol Navigation 1 | . . . . . . . . . . . 1 . . . . . . . Security Stations 1 | . . . . . . . . . . . . . . . . . 1 . Proto ID Catalog 1 | . . . . . 1 . . . . . . . . . . . . . Fabricator Hacks 3 | . . . . . . . . 1 . . . 2 . . . . . . Network Status 3 | . . . . . . . . 1 . . . 2 . . . . . . Repair Station Hacks 5 | . . . . . . . . . . . . . . . . . . 5 Scan Component 3 | . . . . . . . . . . . . . . . . . . 3 Repair 2 | . . . . . . . . . . . . . . . . . . 2 Recycling Unit Hacks 7 | . 2 . 1 . . . 4 . . . . . . . . . . . Report Inventory 5 | . 2 . 1 . . . 2 . . . . . . . . . . . Retrieve Components 2 | . . . . . . . 2 . . . . . . . . . . . Scanalyzer 3 | . . . . . . . 3 . . . . . . . . . . . Insert Component 2 | . . . . . . . 2 . . . . . . . . . . . Analyze 1 | . . . . . . . 1 . . . . . . . . . . . Garrison Access Hacks 5 | . . . . . . . 1 . . 1 . 1 . 1 . 1 . . Unlock Access 4 | . . . . . . . . . . 1 . 1 . 1 . 1 . . Seal Access 1 | . . . . . . . 1 . . . . . . . . . . . Unauthorized Hacks 27 | . 5 . 4 . . . 9 2 . . . 3 . 2 . . . 2 Terminals 15 | . 3 . 3 . . . 6 1 . . . 1 . 1 . . . . Assimilate 2 | . . . . . . . 2 . . . . . . . . . . . Botnet 12 | . 2 . 3 . . . 4 1 . . . 1 . 1 . . . . Operators 1 | . 1 . . . . . . . . . . . . . . . . . Fabricators 4 | . . . . . . . . 1 . . . 2 . . . . . 1 Liberate 4 | . . . . . . . . 1 . . . 2 . . . . . 1 Repair Stations 1 | . . . . . . . . . . . . . . . . . . 1 Patch 1 | . . . . . . . . . . . . . . . . . . 1 Recycling Units 7 | . 2 . 1 . . . 3 . . . . . . 1 . . . . Reject 6 | . 2 . 1 . . . 2 . . . . . . 1 . . . . Mask 1 | . . . . . . . 1 . . . . . . . . . . . Scanalyzers . | . . . . . . . . . . . . . . . . . . . Garrison Access . | . . . . . . . . . . . . . . . . . . . Data Cores Recovered . | . . . . . . . . . . . . . . . . . . . Used . | . . . . . . . . . . . . . . . . . . . Hacking Detections 44 | . 6 . 7 . . . 10 3 . . 2 7 2 2 . 1 2 2 Full Trace Events 2 | . . . . . . . 1 . . . . 1 . . . . . . Feedback Events . | . . . . . . . . . . . . . . . . . . . Feedback Blocked . | . . . . . . . . . . . . . . . . . . . Robot Schematics Acquired . | . . . . . . . . . . . . . . . . . . . Robots Built . | . . . . . . . . . . . . . . . . . . . Authchips . | . . . . . . . . . . . . . . . . . . . Time . | . . . . . . . . . . . . . . . . . . . Total Robot Build Rating . | . . . . . . . . . . . . . . . . . . . Part Schematics Acquired 1 | . . . . . . . 1 . . . . . . . . . . . Parts Built . | . . . . . . . . . . . . . . . . . . . Authchips . | . . . . . . . . . . . . . . . . . . . Time . | . . . . . . . . . . . . . . . . . . . Total Part Build Rating . | . . . . . . . . . . . . . . . . . . . Parts Repaired 2 | . . . . . . . . . . . . . . . . . . 2 Time 156 | . . . . . . . . . . . . . . . . . . 156 Parts Recycled . | . . . . . . . . . . . . . . . . . . . Recycled Matter . | . . . . . . . . . . . . . . . . . . . Retrieved Matter . | . . . . . . . . . . . . . . . . . . . Retrieved Components 12 | . . . . . . . 12 . . . . . . . . . . . Parts Scanalyzed 1 | . . . . . . . 1 . . . . . . . . . . . Part Schematics Acquired 1 | . . . . . . . 1 . . . . . . . . . . . Parts Damaged . | . . . . . . . . . . . . . . . . . . . Bothacking | -11 -10 -10 -9 -9 -9 -8 -8 -7 -7 -7 -7 -7 -7 -6 -6 -5 -5 -4 ------------ Run | Yrd Mat Min Mat Min Exi Min Mat Fac Was Fac Gar Fac Gar Fac Gar Fac Gar Fac Used RIF Installer 5 | . . . . . . . . . . . 1 . 2 . 1 . 1 . Command Fork 1 | . . . . . . . . . . . . . 1 . . . . . Signal Jammer 1 | . . . . . . . . . . . . . . . 1 . . . Zone Cloak 1 | . . . . . . . . . . . . . 1 . . . . . Program Shield 1 | . . . . . . . . . . . . . . . . . 1 . Robots Hacked 14 | . . . 1 . . . . . . . . . 2 . 8 . 3 . Non-combat 2 | . . . 1 . . . . . . . . . . . 1 . . . Combat 12 | . . . . . . . . . . . . . 2 . 7 . 3 . Robot Hacks Applied 17 | . . . 2 . . . . . . . . . 2 . 10 . 3 . parse_system 5 | . . . 1 . . . . . . . . . . . 4 . . . no_distress 2 | . . . 1 . . . . . . . . . . . 1 . . . check_alert 1 | . . . . . . . . . . . . . . . 1 . . . spike_heat 1 | . . . . . . . . . . . . . . . 1 . . . formatsys_high 8 | . . . . . . . . . . . . . 2 . 3 . 3 . Relay Couplers Released 71 | . . . . . . . 1 . . . 20 . 19 . 19 . 12 . Machine Destruction 71 | . . . . . . . 1 . . . 20 . 19 . 19 . 12 . Attached 13 | . . . . . . . . . . . . 1 4 . 4 . 2 2 Fabnet Peak Effective % . | . . . . . . . . . . . . . . . . . . . Robots Rewired 11 | . . . . . . . . . . . . . 8 . 3 . . . Allies Hacked 4 | . . . . . . . . . . . . 2 2 . . . . . Hacks Repelled . | . . . . . . . . . . . . . . . . . . . Allies | -11 -10 -10 -9 -9 -9 -8 -8 -7 -7 -7 -7 -7 -7 -6 -6 -5 -5 -4 -------- Run | Yrd Mat Min Mat Min Exi Min Mat Fac Was Fac Gar Fac Gar Fac Gar Fac Gar Fac Total Allies 47 | . . . . . . . 1 2 20 . . . 11 . 7 . 6 . Largest Group 22 | . . . . . . . 1 2 22 22 22 19 9 4 5 5 5 4 Highest-Rated Group 604 | . . . . . . . 10 42 604 604 604 561 261 110 351 351 351 182 Highest-Rated Ally 119 | . . . . . . . 10 21 35 35 35 35 35 30 119 119 119 62 Total Orders 11 | . . . . . . . . . . . . . . . 7 . 4 . STAY 6 | . . . . . . . . . . . . . . . 3 . 3 . FOLLOW 5 | . . . . . . . . . . . . . . . 4 . 1 . Ally Attacks 393 | . . . . . . . . 2 . . 80 101 70 18 33 18 39 32 Total Damage 13380 | . . . . . . . . 31 . . 3631 4370 1624 414 768 590 937 1015 Kills 103 | . . . . . . . . . . . 27 39 12 2 8 4 5 6 Allies Corrupted 6 | . . . . . . . . . . . . . 3 2 . . 1 . Allies Melted . | . . . . . . . . . . . . . . . . . . . Intel | -11 -10 -10 -9 -9 -9 -8 -8 -7 -7 -7 -7 -7 -7 -6 -6 -5 -5 -4 ------- Run | Yrd Mat Min Mat Min Exi Min Mat Fac Was Fac Gar Fac Gar Fac Gar Fac Gar Fac Active Infowar (turns) 1138 | 58 764 . . . . . . . . . . 316 . . . . . . Seismic 822 | 58 764 . . . . . . . . . . . . . . . . . Jamming 316 | . . . . . . . . . . . . 316 . . . . . . Robot Analysis Total 4 | . 2 . 1 . . . 1 . . . . . . . . . . . Derelict Logs Recovered 2 | . . 1 . 1 . . . . . . . . . . . . . . Drone Launches . | . . . . . . . . . . . . . . . . . . . Drone Recoveries . | . . . . . . . . . . . . . . . . . . . Exploration | -11 -10 -10 -9 -9 -9 -8 -8 -7 -7 -7 -7 -7 -7 -6 -6 -5 -5 -4 ------------- Run | Yrd Mat Min Mat Min Exi Min Mat Fac Was Fac Gar Fac Gar Fac Gar Fac Gar Fac Turns Passed 26152 | 125 918 644 2084 609 433 406 3523 1343 278 77 1632 1853 2763 697 4970 203 2863 731 Spaces Moved 14056 | 87 532 371 902 284 254 188 1798 861 203 38 1126 1240 1463 322 2309 118 1720 240 Core 32 | 11 . . . . . . . . . . . . . . . . . 21 Treads 156 | . . . . . . . . . . . . . . . . . . 156 Legs . | . . . . . . . . . . . . . . . . . . . Wheels 13868 | 76 532 371 902 284 254 188 1798 861 203 38 1126 1240 1463 322 2309 118 1720 63 Hover . | . . . . . . . . . . . . . . . . . . . Flight . | . . . . . . . . . . . . . . . . . . . Fastest Speed 50 | 50 95 140 170 170 170 155 110 110 125 125 125 120 120 180 150 135 135 50 Average Speed 146 | 88 130 149 170 170 170 156 144 123 125 125 125 120 142 180 175 153 135 195 Slowest Speed 250 | 100 200 170 170 170 170 170 170 125 125 125 125 170 180 180 195 180 135 250 Overloaded Moves . | . . . . . . . . . . . . . . . . . . . Propulsion Burnouts . | . . . . . . . . . . . . . . . . . . . Robots Hopped . | . . . . . . . . . . . . . . . . . . . Potential Cave-ins 34 | . . . . 5 . . . . . . . . . . . . 29 . Cave-ins Triggered 2 | . . . . 1 . . . . . . 1 . . . . . . . Exploration Rate (%) 50 | 5 63 68 66 70 68 31 87 14 76 1 86 33 91 6 92 3 92 7 Regions Visited 18 Branch Regions 4 Pre-discovered Areas 2 | . . 1 . 1 . . . . . . . . . . . . . . Known Exits Taken 4 | . . . . . . . . . . 1 . 1 . 1 . 1 . . Unknown Exits Taken 8 | 1 1 1 1 1 1 1 1 . . . . . . . . . . . Scrap Searched 1 | . . . . . . 1 . . . . . . . . . . . . Spaces Dug 43 | . . . . 10 . . 8 . . . . . . . 3 . 21 1 Terrain Destroyed 448 | . . . 22 14 . . 20 . . . . . 210 4 20 . 150 8 Melee . | . . . . . . . . . . . . . . . . . . . Projectile 144 | . . . . 14 . . 18 . . . . . 11 4 8 . 81 8 AOE 304 | . . . 22 . . . 2 . . . . . 199 . 12 . 69 . Terrain Rammed . | . . . . . . . . . . . . . . . . . . . Walls Destroyed . | . . . . . . . . . . . . . . . . . . . Machines Disabled . | . . . . . . . . . . . . . . . . . . . Actions | -11 -10 -10 -9 -9 -9 -8 -8 -7 -7 -7 -7 -7 -7 -6 -6 -5 -5 -4 --------- Run | Yrd Mat Min Mat Min Exi Min Mat Fac Was Fac Gar Fac Gar Fac Gar Fac Gar Fac Total 18060 | 113 649 416 1259 328 256 247 2472 1086 230 67 1311 1574 1979 422 2961 140 2087 463 Wait 2243 | 4 21 5 68 9 . 20 449 174 12 30 102 282 331 79 251 19 210 177 Move 14036 | 86 531 370 901 283 253 187 1797 861 202 37 1124 1239 1461 322 2307 117 1718 240 Hop . | . . . . . . . . . . . . . . . . . . . Pick Up 147 | 7 19 5 19 1 1 4 22 5 3 . 8 2 12 2 23 1 10 3 Fast Attach 85 | 7 3 1 6 . . 2 10 7 3 . . 10 4 5 15 1 7 4 Attach 56 | . 1 3 3 1 . 5 2 2 . . 3 1 6 . 14 1 3 11 Detach 24 | . . 1 2 . . 1 2 1 1 . 1 2 3 . 5 . 3 2 Swap 137 | . 7 1 26 2 1 2 26 2 . . 2 4 20 1 33 . 10 . Drop 204 | . 12 5 36 1 1 1 45 10 6 . 5 13 10 6 26 1 19 7 Fire 734 | 9 55 25 94 31 . 24 119 24 . . 20 13 76 7 139 . 82 16 Melee 45 | . . . 2 . . . . . . . . . 20 . 18 . 5 . Ram . | . . . . . . . . . . . . . . . . . . . Kick . | . . . . . . . . . . . . . . . . . . . Crush 3 | . . . . . . . . . . . . . . . . . . 3 Escape Stasis 152 | . . . . . . . . . . . 39 8 24 . 65 . 16 . Rewire 29 | . . . . . . 1 . . 3 . 1 . 6 . 14 . 4 . Trap 165 | . . . 102 . . . . . . . 6 . 6 . 51 . . . Miscellaneous . | . . . . . . . . . . . . . . . . . . . Route ------- -11/Scrapyard -10/Materials (discovered 2 exits: *Mat / *Min) -10/Mines (discovered 2 exits: *Mat x2) -9/Materials (discovered 3 exits: *Mat x2 / *Min) -9/Mines (discovered 3 exits: *Mat x2 / *Exi) -9/Exiles -8/Mines -8/Materials -7/Factory -7/Waste -7/Factory -7/Garrison (discovered 3 exits: *Fac x3) -7/Factory (discovered 2 exits: [*Low] / Gar) -7/Garrison (discovered 3 exits: *Fac x3) -6/Factory -6/Garrison (discovered 3 exits: *Fac x3) -5/Factory -5/Garrison (discovered 3 exits: *Fac x3) -4/Factory History --------- Turn | Location | Event 16 | -11/Scrapyard | Discovered new exit (range 15) 126 | -11/Scrapyard | Entered Materials 223 | -10/Materials | Discovered new exit (range 15) 317 | -10/Materials | Build established: Mutant 927 | -10/Materials | Core integrity fell below 50% 935 | -10/Materials | Discovered new exit (range 15) 1044 | -10/Materials | Entered Mines 1050 | -10/Mines | Met a Derelict bent on vengeance 1166 | -10/Mines | Learned location of Recycling (-7) 1206 | -10/Mines | Found the Drone Emporium 1212 | -10/Mines | Found Prototype Device 1466 | -10/Mines | Met a Derelict shopkeep closing up shop 1554 | -10/Mines | Discovered new exit (range 13) 1662 | -10/Mines | Discovered new exit (range 14) 1688 | -10/Mines | Entered Materials 1688 | -9/Materials | Evolved 2 slots: Utility x1, Weapon x1 1990 | -9/Materials | Build established: Tank 2103 | -9/Materials | Discovered new exit (range 16) 2579 | -9/Materials | Discovered new exit (range 3) 2740 | -9/Materials | Build established: Scavenger-Tank 2888 | -9/Materials | First assault squad dispatched 3243 | -9/Materials | Discovered new exit (range 16) 3406 | -9/Materials | Build established: Gunner 3772 | -9/Materials | Entered Mines 3808 | -9/Mines | Learned location of Zion (-6) 3865 | -9/Mines | Discovered new exit (range 8) 3887 | -9/Mines | Discovered new exit (range 15) 3967 | -9/Mines | Received a Rocket Launcher from a helpful Derelict 4171 | -9/Mines | Assembled infested the area 4263 | -9/Mines | Crushed by falling debris 4372 | -9/Mines | Deemed a non-threat by the Exiles lab entrance 4372 | -9/Mines | Discovered new exit (range 5) 4381 | -9/Mines | Entered Exiles 4422 | -9/Exiles | Met 8R-AWN 4448 | -9/Exiles | Met EX-HEX 4497 | -9/Exiles | Met EX-BIN 4517 | -9/Exiles | Aligned with FarCom system 4519 | -9/Exiles | Given EX-Vault access code 4562 | -9/Exiles | Opened EX-Vault 4574 | -9/Exiles | Found Gui. Plasma Cannon 4609 | -9/Exiles | Warned to stay clear of 0b10 Research branches 4658 | -9/Exiles | Met EX-DEC 4791 | -9/Exiles | Discovered new exit (range 14) 4814 | -9/Exiles | Left Exiles lab with Gui. Plasma Cannon 4814 | -9/Exiles | Entered Mines 4826 | -8/Mines | Core integrity fell below 50% 5027 | -8/Mines | Discovered new exit (range 5) 5220 | -8/Mines | Entered Materials 5220 | -8/Materials | Evolved 2 slots: Propulsion x1, Utility x1 5601 | -8/Materials | Build established: Scavenger-Skirmisher 6533 | -8/Materials | Identified Bomb Drone Bay 7421 | -8/Materials | Build established: Skirmisher 7582 | -8/Materials | Discovered new exit (range 8) 8743 | -8/Materials | Entered Factory 8743 | -7/Factory | Evolved 2 slots: Propulsion x1, Utility x1 9135 | -7/Factory | Discovered new exit (range 13) 9237 | -7/Factory | Identified exit to Storage 10086 | -7/Factory | Sucked down chute 10086 | -7/Factory | Entered Waste 10087 | -7/Waste | Joined by Warlord forces that had cleared the area 10111 | -7/Waste | 2 allies followed down the chute 10168 | -7/Waste | Discovered new exit (range 11) 10364 | -7/Waste | Entered Factory 10364 | -7/Factory | Accompanied by 22 allies 10389 | -7/Factory | Identified exit to Garrison 10441 | -7/Factory | Entered Garrison 10441 | -7/Garrison | Accompanied by 22 allies 10487 | -7/Garrison | Triggered checkpoint 10699 | -7/Garrison | Triggered checkpoint 10719 | -7/Garrison | Triggered checkpoint 10759 | -7/Garrison | Triggered checkpoint 10787 | -7/Garrison | Triggered checkpoint 10931 | -7/Garrison | Discovered new exit (range 13) 10933 | -7/Garrison | Crushed by falling debris 10933 | -7/Garrison | System corruption reached 10% 10965 | -7/Garrison | Installed Relay Interface Framework 11193 | -7/Garrison | Triggered checkpoint 11240 | -7/Garrison | Garrison Relay disabled 11246 | -7/Garrison | Garrison Relay disabled 11434 | -7/Garrison | Discovered new exit (range 10) 11535 | -7/Garrison | Triggered checkpoint 11553 | -7/Garrison | Discovered new exit (range 14) 11553 | -7/Garrison | Discovered new exit (range 56) 11553 | -7/Garrison | Discovered new exit (range 48) 11572 | -7/Garrison | Build established: Tank 11590 | -7/Garrison | Garrison Relay disabled 11837 | -7/Garrison | Garrison Relay disabled 11906 | -7/Garrison | Build established: Bothacker-Tank 11951 | -7/Garrison | Garrison Relay disabled 12073 | -7/Garrison | Entered Factory 12073 | -7/Factory | Accompanied by 19 allies 12455 | -7/Factory | Build established: Bothacker-Skirmisher 12760 | -7/Factory | Lost 3 allies 12984 | -7/Factory | Discovered new exit (range 4) 13273 | -7/Factory | First assault squad dispatched 13796 | -7/Factory | Allied Derelicts emerged from ambush trap array 13870 | -7/Factory | Garrison activated, responded to threat 13884 | -7/Factory | Identified exit to Garrison 13926 | -7/Factory | Entered Garrison 13926 | -7/Garrison | Accompanied by 8 allies 14038 | -7/Garrison | Phase Generator disabled 14136 | -7/Garrison | Triggered checkpoint 14192 | -7/Garrison | Garrison Relay disabled 14213 | -7/Garrison | P-60 Hacker assimilated allied OK-86S(b) 14255 | -7/Garrison | Lost 7 allies 14404 | -7/Garrison | Heavy support dispatched to Factory 14465 | -7/Garrison | Triggered checkpoint 14506 | -7/Garrison | Triggered checkpoint 14589 | -7/Garrison | Triggered checkpoint 14623 | -7/Garrison | Discovered new exit (range 58) 14623 | -7/Garrison | Discovered new exit (range 55) 14623 | -7/Garrison | Discovered new exit (range 22) 14649 | -7/Garrison | Build established: Skirmisher 14691 | -7/Garrison | Garrison Relay disabled 14982 | -7/Garrison | Triggered checkpoint 15182 | -7/Garrison | Triggered checkpoint 15228 | -7/Garrison | Garrison Relay disabled 15346 | -7/Garrison | Lost 5 parts (1p2n2w) 15397 | -7/Garrison | Expanded RIF knowledge: Zone Cloak 15604 | -7/Garrison | H-XX Assembler disabled 16089 | -7/Garrison | Garrison Relay disabled 16158 | -7/Garrison | Triggered checkpoint 16214 | -7/Garrison | Triggered checkpoint 16269 | -7/Garrison | Lost 3 allies 16286 | -7/Garrison | Expanded RIF knowledge: Command Fork 16310 | -7/Garrison | Triggered checkpoint 16322 | -7/Garrison | Garrison Relay disabled 16386 | -7/Garrison | Build established: Commander-Skirmisher 16536 | -7/Garrison | Rescued a captive Derelict 16689 | -7/Garrison | Entered Factory 16689 | -6/Factory | Accompanied by 4 allies 16689 | -6/Factory | Evolved 2 slots: Utility x2 17020 | -6/Factory | Found Powered Armor 17039 | -6/Factory | First assault squad dispatched 17059 | -6/Factory | Garrison activated, responded to threat 17108 | -6/Factory | Lost 4 allies 17136 | -6/Factory | Build established: Bothacker-Skirmisher 17386 | -6/Factory | Identified exit to Garrison 17386 | -6/Factory | Entered Garrison 17624 | -6/Garrison | Expanded RIF knowledge: Signal Jamming 17706 | -6/Garrison | Triggered checkpoint 17833 | -6/Garrison | Garrison Relay disabled 18074 | -6/Garrison | Lost 7 parts (1p2n2u2w) 18075 | -6/Garrison | Destroyed 10 combat bots 18546 | -6/Garrison | Triggered checkpoint 18648 | -6/Garrison | Build established: Scavenger-Skirmisher 18774 | -6/Garrison | Heavy support dispatched to Factory 19063 | -6/Garrison | Triggered checkpoint 19166 | -6/Garrison | Heavy support dispatched to Factory 19415 | -6/Garrison | Spotted B-75 Beast 19676 | -6/Garrison | Spotted B-75 Beast 19742 | -6/Garrison | Triggered checkpoint 19815 | -6/Garrison | Discovered new exit (range 7) 19823 | -6/Garrison | Identified exit to Factory 20023 | -6/Garrison | Garrison Relay disabled 20239 | -6/Garrison | H-XX Assembler disabled 20498 | -6/Garrison | Triggered checkpoint 20899 | -6/Garrison | Rewired B-75 Beast 20981 | -6/Garrison | Discovered exit to Factory (range 13) 21018 | -6/Garrison | Rewired Executioner 21037 | -6/Garrison | Rewired Striker 21114 | -6/Garrison | Garrison Relay disabled 21242 | -6/Garrison | Triggered checkpoint 21410 | -6/Garrison | Build established: Scavenger-Tank 21920 | -6/Garrison | Triggered checkpoint 22009 | -6/Garrison | Discovered exit to Factory (range 10) 22166 | -6/Garrison | Triggered checkpoint 22197 | -6/Garrison | Garrison Relay disabled 22356 | -6/Garrison | Entered Factory 22356 | -5/Factory | Accompanied by 5 allies 22356 | -5/Factory | Evolved 2 slots: Propulsion x1, Utility x1 22462 | -5/Factory | Identified exit to Garrison 22520 | -5/Factory | High security lockdown imminent 22559 | -5/Factory | Entered Garrison 22559 | -5/Garrison | Accompanied by 5 allies 22576 | -5/Garrison | Learned Factory security intel 22645 | -5/Garrison | Expanded RIF knowledge: Program Shield 22729 | -5/Garrison | Phase Generator disabled 22905 | -5/Garrison | Found Exp. Core Analyzer 22965 | -5/Garrison | Triggered checkpoint 23042 | -5/Garrison | Lost 3 allies 23059 | -5/Garrison | Garrison Relay disabled 23094 | -5/Garrison | Found Imp. Powered Armor 23104 | -5/Garrison | Found Imp. Powered Armor 23601 | -5/Garrison | Discovered new exit (range 13) 23671 | -5/Garrison | Rescued a captive Derelict 24565 | -5/Garrison | Garrison Relay disabled 24594 | -5/Garrison | Discovered new exit (range 13) 24612 | -5/Garrison | Identified exit to Factory 24763 | -5/Garrison | Discovered exit to Factory (range 15) 25114 | -5/Garrison | Found embedded Infiltrators 25155 | -5/Garrison | Triggered checkpoint 25177 | -5/Garrison | Garrison Relay disabled 25422 | -5/Garrison | Entered Factory 25422 | -4/Factory | Accompanied by 4 allies 25422 | -4/Factory | Evolved 2 slots: Utility x2 25526 | -4/Factory | Repaired Arm. Wheel 25651 | -4/Factory | Repaired Broken Vibroblade 25672 | -4/Factory | First assault squad dispatched 26074 | -4/Factory | Cargo convoy interrupted 26078 | -4/Factory | Lost 3 allies 26116 | -4/Factory | Lost 10 parts (1p4n3u2w) 26134 | -4/Factory | Core integrity fell below 50% 26143 | -4/Factory | Core integrity fell below 20% 26153 | -4/Factory | Destroyed by G-67 Veteran with Field Laser Last Messages --------------- 26138_ G-73 Enforcer knocked back. 26140_ G-73 Enforcer destroyed. 26140_ Dropped Hcp. Storage Unit. 26140_ Dropped Wave Gun. 26141_ Dropped KE Penetrator. 26141_ Slug penetrates H-77 Assassin. 26141_ Slug penetrates Wall. 26141_ M-36 Artificer repairs G-67 Veteran. 26141_ G-67 Veteran knocked back. 26141_ M-36 Artificer knocked back. 26141_ H-77 Assassin knocked back. 26142_ Dropped Rnf. Fission Core. 26143_ Dropped Matter Compressor. 26143_ M-36 Artificer repairs G-67 Veteran Field Laser. 26143_ Penetrated by Slug. 26143_ Imp. Remote Datajack destroyed. 26144_ Slug penetrates Wall. 26144_ Penetrated by Slug. 26153_ Critical hit (Burn: +37). Map ----- +----------------------------------------------------+ | ?????????????????????????????????????????????????? | | ?????????????????????????????????????????????????? | | ?????????????????????????????????????????????????? | | ?????????????????????????????????????????????????? | | ?????????????????????????????????????????????????? | | ????????????????????##???????????????????????????? | | ????????????# ????? #???????????????????????????? | | ????????????# ????? ????????????????????????????? | | ????????????# """ ????????????????????????????? | | ????????????? """ ?????????????????????????????? | | ????????????? ?????????????????????????????? | | ?????????????? """ ??????????????????????????????? | | ?????????????? """ ??????????????????????????????? | | ???????????????"""???????????????????????????????? | | ??????????????? ???##########??????????????????? | | ????????########+##### #??????????????????? | | ??????+ + """"#??????????????????? | | ################ ##### """"#??????????????????? | | # """ ##x#???# """"#??????????????????? | | # !"R" ##x#???# """"#??????????????????? | | # " ## #???# """"#??????????????????? | | # [[ # #???# """"#??????????????????? | | # %= !h#???# """"#??????????????????? | | %%h!##??# #??????????????????? | | [g*######+######??????????????????? | | % m g @ #????????????????????? | | u #????????????????????? | | hg dx #????????????????????? | | % h % #????????????????????? | | = g #????????????????????? | | !=# *%! #????????????????????? | | *%# + ## """"" #????????????????????? | | %*=! u """""" ????????????????????? | | [% "%" %%=%m """ ????????????????????? | | [! % " *%[ """"" ???????????????????? | | =% ! % % ? ???????????????????? | | =*%[!% % %" ? ??????????????????? | | ##########+############ ?? ###??????????????????? | | # #?? ????????????? #????????????????????? | | + #?? ? ????????????? #????????????????????? | | # #??"" """ #??????????w ?????????????????????? | | + #???" ??" #?????????????????????????????????? | | # #???????? #?????????????????????????????????? | | ######???????????????????????????????????????????? | | #####????????????????????????????????????????????? | | #????????????????????????????????????????????? | | #????????????????????????????????????????????? | | """ #????????????????????????????????????????????? | | """ #????????????????????????????????????????????? | | """ #????????????????????????????????????????????? | +----------------------------------------------------+ Best States ------------- Heat Dissipation 62 Energy Generation 19 Energy Capacity 315 Matter Stores 300 Matter Capacity 300 Sight Range 16 Terrain Scan Density 10 Jamming Range 12 Armor Coverage 800 Core Shielding 20 Evasion (%) 50 Targeting Accuracy 16 Melee Accuracy 8 Core Analysis 8 Recoil Reduction 4 Offensive Hacking 12 Defensive Hacking 10 Relay Coupler Types 2 Relay Coupler Value 68 Item Schematics ----------------- Core Shielding | -8/Materials | Scanalyzed Robot Schematics ------------------ None Fabricated ------------ Nothing Repaired ---------- Arm. Wheel | 18% | -4/Factory Vibroblade | 18% | -4/Factory | Broken Alien Tech Used ----------------- None Achievements -------------- None Challenges ------------ None Game ------ Seed HackingCloakNukerbomber Manual? 1 Play Time 03:04:12 Cumulative 329.6 hours Start 2025.08.20 @ 21:04:26 End 2025.08.21 @ 17:48:40 Sessions 8 Manual Loads 0 Difficulty Rogue Special Mode None Game No. 285 Rogue 285 Adventurer 0 Explorer 0 Win Type - Total 2 Types 2/0/0/0/0/0/0/0/0/0 Lore% 73 Gallery% 66 Achievement% 53 Wizard Run 0 Options --------- Layout 2 ASCII 1 Keyboard 1 Movement Numpad Keybinds 0 Fullscreen 2 Font 32/TamsynBold Map View 50x44 Zoom Use 0% Tactical HUD 1 Map Filters NONE Filters NONE Steam 1 RUN: 7744757d-8dae-45f5-bef0-9fc20ac81152